Cogmind - Beta 16 @@@ ROGUE MODE // 2025.11.25 @ 13:28:38 Player: C0-2MO Result: Destroyed by Y-54 Guardian with Flak Gun Performance ------------- Evolutions (3) 1500 Regions Visited (15) 3000 Robots Destroyed (65) 325 Value Destroyed (2628) 2628 Prototype IDs (10) 200 Alien Tech Used (0) 0 Bonus (3064) 3064 TOTAL SCORE: 10717 Bonus ------- High Alert Combat Kills 17 Follower Combat Kills 247 Entered Garrisons 800 Used RIF Installer 2000 Cogmind --------- Core Integrity 0/700 Matter 253/300 Energy 98/100 System Corruption 7% Temperature Cool (6) Movement Core (50) Location -7/Recycling Parts ------- > --- POWER (1) -------- (None) > --- PROPULSION (5) --- Improved Hover Unit > --- UTILITY (5) ------ Authchip [Propulsion] Relay Coupler [NC] (30) Relay Coupler [Grunt] (24) Relay Coupler [Sentry] (27) > --- WEAPON (2) ------- (None) > --- INVENTORY (5) ---- ECM Suite Authchip [Weapon] Trap Extractor (4/4 Blade) Plasma Cutter Peak State ------------ > --- POWER ------------ Backup Power VII > --- PROPULSION ------- Cesium-ion Thruster Cesium-ion Thruster Improved VTOL Module Xenon Bombardment Thruster Improved Cesium-ion Thruster > --- UTILITY ---------- Medium Storage Unit Advanced Visual Processing Unit Improved Sensor Array Improved Signal Interpreter System Restoration Module > --- WEAPON ----------- Plasma Cutter Great Axe > --- INVENTORY -------- Micro Nuclear Core Cesium-ion Thruster Xenon Bombardment Thruster Xenon Bombardment Thruster Structural Scanner ECM Suite Improved Propulsion Shielding Authchip [Weapon] Trap Extractor Improved Datajack [Rating: 48] Favorites ----------- Power Backup Power VII Engine Light Deuterium Engine Power Core Backup Power VII Propulsion Cesium-ion Thruster Hover Unit Hover Unit Flight Unit Cesium-ion Thruster Utility Medium Storage Unit Device Improved Sensor Array Storage Medium Storage Unit Processor Improved Signal Interpreter Hackware Hacking Suite Protection Hardened Light Armor Plating Weapon Light Assault Rifle Energy Gun Particle Gun Ballistic Gun Light Assault Rifle Launcher Mini Grenade Launcher Special Weapon Plasma Cutter Impact Weapon Mace Slashing Weapon Axe Special Melee Weapon Improved Datajack Build | -11 -10 -10 -9 -9 -8 -8 -8 -8 -7 -7 -7 -7 -7 -7 -7 ------- Run | Yrd Mat Min Mat Min Mat Gar Mat Gar Fac Was Fac Gar Sto Gar Rec Slots Evolved 6 | . . . 2 . 2 . . . 2 . . . . . . Power . | . . . . . . . . . . . . . . . . Propulsion 3 | . . . 1 . 1 . . . 1 . . . . . . Utility 3 | . . . 1 . 1 . . . 1 . . . . . . Weapon . | . . . . . . . . . . . . . . . . Parts Attached 108 | 2 17 . 33 1 8 1 11 . 17 . 7 1 1 7 2 Power 13 | . 1 . 5 . . . 2 . 4 . . . . 1 . Engine 10 | . 1 . 5 . . . 2 . 2 . . . . . . Core 3 | . . . . . . . . . 2 . . . . 1 . Reactor . | . . . . . . . . . . . . . . . . Propulsion 37 | . 8 . 12 . 3 1 1 . 4 . 3 . . 4 1 Treads . | . . . . . . . . . . . . . . . . Leg . | . . . . . . . . . . . . . . . . Wheel . | . . . . . . . . . . . . . . . . Hover 11 | . 8 . 2 . . . . . . . . . . . 1 Flight 26 | . . . 10 . 3 1 1 . 4 . 3 . . 4 . Utility 34 | . 5 . 6 . 5 . 4 . 7 . 2 1 1 2 1 Device 12 | . 1 . 1 . 4 . 2 . 2 . 2 . . . . Storage 6 | . 2 . 2 . . . 1 . 1 . . . . . . Processor 3 | . . . . . 1 . . . 2 . . . . . . Hackware 9 | . 1 . 1 . . . 1 . 1 . . 1 1 2 1 Protection 4 | . 1 . 2 . . . . . 1 . . . . . . Artifact . | . . . . . . . . . . . . . . . . Weapon 24 | 2 3 . 10 1 . . 4 . 2 . 2 . . . . Energy Gun 2 | . . . 1 . . . 1 . . . . . . . . Energy Cannon . | . . . . . . . . . . . . . . . . Ballistic Gun 6 | 2 2 . 2 . . . . . . . . . . . . Ballistic Cannon . | . . . . . . . . . . . . . . . . Launcher 2 | . . . 1 1 . . . . . . . . . . . Special Weapon 3 | . 1 . 1 . . . 1 . . . . . . . . Impact Weapon 5 | . . . 3 . . . 2 . . . . . . . . Slashing Weapon 3 | . . . . . . . . . 1 . 2 . . . . Piercing Weapon . | . . . . . . . . . . . . . . . . Special Melee Weapon 3 | . . . 2 . . . . . 1 . . . . . . Unidentified Prototypes 5 | . . . 1 . . . 2 . 1 . 1 . . . . Corrupted Parts 1 | . . . . . . . . . . . . . . . 1 System Corruption 2 | . . . . . . . . . . . . . . . 2 Parts Lost 37 | . 5 . 4 5 3 1 2 . 2 . 1 . . 13 1 Power 4 | . . . 1 1 . . . . . . . . . 2 . Propulsion 23 | . 4 . 3 2 1 1 1 . 2 . . . . 8 1 Utility 4 | . . . . 1 . . 1 . . . 1 . . 1 . Weapon 6 | . 1 . . 1 2 . . . . . . . . 2 . Highest Loss Streak 8 | . 3 . 2 4 3 1 1 . 1 . 1 . . 8 1 To Critical Strikes . | . . . . . . . . . . . . . . . . Average Backups 7 | . 8 5 5 5 4 4 5 6 9 10 9 10 9 8 4 Power . | . . . . . . . . . . 1 . 1 1 1 . Propulsion 1 | . 2 1 1 . . . . . . . 2 3 3 2 . Utility 3 | . 1 2 1 2 1 2 3 4 5 5 4 5 4 3 3 Weapon . | . 1 . . 1 1 1 1 2 2 2 . . . . . Tool/Special . | . . . . . . . . . . . . . . . . Unused Backups 15 | . 2 . 3 . . . 1 1 4 . 3 . . . 1 Power 1 | . . . . . . . . . 1 . . . . . . Propulsion . | . . . . . . . . . . . . . . . . Utility 11 | . 2 . 2 . . . 1 1 2 . 2 . . . 1 Weapon 2 | . . . 1 . . . . . . . 1 . . . . Tool/Special 1 | . . . . . . . . . 1 . . . . . . Average Slot Usage (%) 87 | . 75 100 97 63 72 80 90 85 87 84 96 100 99 91 36 Engine 3 | . . 14 10 2 . . 4 9 5 . . . . . . Core 2 | . . . . . . . . . 1 7 7 7 7 6 . Hover 6 | . 26 28 14 . . . . . . . . . . . 3 Flight 25 | . . . 17 23 27 35 35 27 33 30 37 38 38 34 3 Device 9 | . . . 1 11 24 27 22 18 15 7 13 7 6 1 . Storage 5 | . 12 . 3 3 . . 1 9 7 7 7 7 7 6 . Processor 6 | . . . . . 8 9 9 9 13 15 15 15 7 4 . Hackware 7 | . 7 14 15 2 . . 2 . . . . 1 14 20 29 Protection 2 | . . 14 12 . . . . . . 7 . 5 . 1 . Ballistic Gun 6 | . 25 28 11 . . . . . . . . . . . . Special Weapon 1 | . . . . . . 1 4 5 . . 4 4 . . . Impact Weapon 3 | . . . 5 11 9 7 9 8 . . . . . . . Slashing Weapon 2 | . . . . . . . . . 6 7 7 7 7 6 . Special Melee Weapon 1 | . . . 3 . 1 . . . . . . 2 7 4 . Peak Build Rating 48 | 2 10 10 23 20 19 18 29 26 43 35 48 48 47 48 14 Average Rating 26 | 1 7 10 18 11 16 17 23 24 34 35 43 47 46 41 13 On Entrance 22 | . 2 10 10 20 10 18 18 26 24 35 35 48 47 47 10 Avg Prop Armor Cover (%) 14 | . . . 13 . 12 11 17 . . . . . . . 24 Naked Turns . | . . . . . . . . . . . . . . . . Heaviest Build 25 | 2 12 10 19 18 10 6 16 16 25 22 22 21 19 21 . Greatest Support 31 | 3 12 12 18 18 16 18 20 16 28 22 30 30 30 31 5 Greatest Overweight (x) 1 | . . . 1 . . . . . 1 . . . . 1 . Average Overweight (x) . | . . . . . . . . . . . . . . . . Largest Inventory Capacity 15 | 5 15 5 10 10 5 5 8 8 10 10 10 10 10 10 5 Average Capacity 8 | 5 9 5 6 6 5 5 5 8 9 10 10 10 10 9 5 Most Carried 10 | . 10 5 10 7 5 5 6 8 10 10 10 10 10 10 4 Average Carried 7 | . 8 5 5 5 4 4 5 6 9 10 9 9 9 8 4 Final Capacity 10 | 5 5 5 10 5 5 5 8 8 10 10 10 10 10 5 5 Final Carried 10 | . 5 5 7 5 5 5 6 8 10 10 10 10 10 4 4 Class Distribution -------------------- 32% | Scout 21% | Mutant 11% | Scientist-Sprinter 9% | Sprinter 6% | Hacker-Sprinter 6% | Scientist-Scout 6% | Scavenger-Mutant 4% | Infiltrator-Ninja Dominant Class ---------------- Mutant | -10/Materials Scavenger-Mutant | -10/Mines Hacker-Sprinter | -9/Materials Sprinter | -9/Mines Scout | -8/Materials Scout | -8/Garrison Infiltrator-Ninja | -8/Materials Scientist-Scout | -8/Garrison Scout | -7/Factory Sprinter | -7/Waste Scout | -7/Factory Sprinter | -7/Garrison Scientist-Sprinter | -7/Storage Scientist-Sprinter | -7/Garrison Mutant | -7/Recycling Resources | -11 -10 -10 -9 -9 -8 -8 -8 -8 -7 -7 -7 -7 -7 -7 -7 ----------- Run | Yrd Mat Min Mat Min Mat Gar Mat Gar Fac Was Fac Gar Sto Gar Rec Matter Collected 1884 | 220 176 47 557 104 110 . 123 . 246 . 175 . 80 46 . Remotely . | . . . . . . . . . . . . . . . . Salvage Created 2152 | . 470 47 556 89 114 . 140 . 418 . 278 . 40 . . Parts 129 | . 27 7 44 2 7 . 3 . 23 . 15 . 1 . . Haulers Intercepted 7 | . . . 2 . 1 . 1 . 1 . 1 . 1 . . Recyclers Shooed 3 | . 1 . . . . . . . 1 . 1 . . . . Parts Field Recycled . | . . . . . . . . . . . . . . . . Retrieved Matter . | . . . . . . . . . . . . . . . . Parts Self-Destructed . | . . . . . . . . . . . . . . . . Prevented . | . . . . . . . . . . . . . . . . Parts Restored . | . . . . . . . . . . . . . . . . Kills | -11 -10 -10 -9 -9 -8 -8 -8 -8 -7 -7 -7 -7 -7 -7 -7 ------- Run | Yrd Mat Min Mat Min Mat Gar Mat Gar Fac Was Fac Gar Sto Gar Rec Combat Hostiles Destroyed 47 | . 7 3 13 22 2 . . . . . . . . . . Melee 1 | . . . 1 . . . . . . . . . . . . Guns 19 | . 7 3 9 . . . . . . . . . . . . AOE 27 | . . . 3 22 2 . . . . . . . . . . Classes Destroyed 11 | . 5 . 3 2 . . . . . . 1 . . . . Worker 2 | . . . 1 . . . . . 1 . . . . . . Builder 1 | . . . . . . . . . . . 1 . . . . Hauler 7 | . . . 2 . 1 . 1 . 1 . 1 . 1 . . Recycler 8 | . 3 . . . . . 1 . 2 . 2 . . . . Operator 7 | . 1 . 2 . 1 . . . 2 . 1 . . . . Watcher 13 | . 2 . 2 . 2 . 1 . 4 . 2 . . . . Swarmer 14 | . 3 3 6 . 2 . . . . . . . . . . Grunt 9 | . 4 . 4 1 . . . . . . . . . . . Duelist 1 | . . . . 1 . . . . . . . . . . . Sentry 3 | . . . 3 . . . . . . . . . . . . Assembled 20 | . . . . 20 . . . . . . . . . . . Best Kill Streak 22 | . 3 3 5 22 4 . 1 . 2 . 3 . 1 . . Combat Bots Only 22 | . 3 3 3 22 2 . . . . . . . . . . Max Kills in Single Turn 10 | . 2 1 3 10 2 . 1 . 1 . 1 . 1 . . Gunslinging 1 | . 1 . . . . . . . . . . . . . . Exploded 10 | . . . 3 10 1 . . . . . . . . . . Melee 1 | . . . 1 . . . . . . . . . . . . Uniques/NPCs Destroyed . | . . . . . . . . . . . . . . . . Combat | -11 -10 -10 -9 -9 -8 -8 -8 -8 -7 -7 -7 -7 -7 -7 -7 -------- Run | Yrd Mat Min Mat Min Mat Gar Mat Gar Fac Was Fac Gar Sto Gar Rec Hostile Shots Fired 570 | . 82 16 120 36 28 16 19 19 11 . 7 6 . 192 18 Missed 271 | . 29 1 62 17 12 8 12 9 5 . 5 5 . 97 9 Hits 299 | . 53 15 58 19 16 8 7 10 6 . 2 1 . 95 9 Melee 2 | . . . 1 . . . . . . . . . . 1 . Projectile 297 | . 53 15 57 19 16 8 7 10 6 . 2 1 . 94 9 AOE 4 | . . . . . . . . . . . . . 3 1 . Critical Strikes 9 | . . . . . 1 2 . 1 . . . . . 5 . Actively Blocked 1 | . . . . . . . . . . . . . . 1 . Part Disruptions 3 | . . . . 2 . . . . . . . . . 1 . Actively Blocked 1 | . . . . . . . . . . . . . . 1 . Damage Taken 3872 | . 661 125 762 225 173 120 76 136 92 . 12 14 69 1358 49 Core 1307 | . 198 51 173 15 38 44 47 38 13 . 6 . 12 639 33 Absorbed by Shields 30 | . . . . . . . . 22 . . . . . 8 . Redirected to Shielding 106 | . . . . . . . . . 15 . . . . 91 . Regen/Repaired (Parts) 54 | . . . 54 . . . . . . . . . . . . Core Remaining (%) 55 | 100 . . . 53 . . . 69 . . . . . . . Volleys Fired 117 | . 60 7 42 6 2 . . . . . . . . . . Largest 2 | . 2 2 2 1 1 . . . . . . . . . . Hottest 100 | . 100 40 43 30 30 . . . . . . . . . . Shots Fired 217 | . 117 14 78 6 2 . . . . . . . . . . Gun 205 | . 114 14 77 . . . . . . . . . . . . Cannon . | . . . . . . . . . . . . . . . . Launcher 9 | . . . 1 6 2 . . . . . . . . . . Special 3 | . 3 . . . . . . . . . . . . . . Kinetic 205 | . 114 14 77 . . . . . . . . . . . . Thermal 3 | . 3 . . . . . . . . . . . . . . Explosive 9 | . . . 1 6 2 . . . . . . . . . . Electromagnetic . | . . . . . . . . . . . . . . . . Robot Hit Streak 12 | . 12 2 6 2 1 . . . . . . . . . . Robot Miss Streak 5 | . 5 4 2 1 1 . . . . . . . . . . Penetration Max . | . . . . . . . . . . . . . . . . Secondary Targets 3 | . 1 1 1 . . . . . . . . . . . . Max Gunslinging Chain 1 | . 1 1 1 . . . . . . . . . . . . Shots Hit Robots 191 | . 62 5 61 3 6 1 3 . 16 . 16 7 5 6 . Core Hits 124 | . 27 5 28 40 7 . 1 . 8 . 7 . 1 . . Critical Kills 1 | . . . 1 . . . . . . . . . . . . Critical Parts Destroyed 4 | . 1 . . . 2 . 1 . . . . . . . . Critical Strikes 8 | . 1 . 1 . 2 . 1 . 1 . . . 1 1 . Destroy 1 | . 1 . . . . . . . . . . . . . . Smash 4 | . . . 1 . 2 . 1 . . . . . . . . Sever 3 | . . . . . . . . . 1 . . . 1 1 . Melee Attacks 257 | . . . 30 . 12 15 19 11 55 . 55 18 8 34 . Impact 86 | . . . 29 . 12 15 19 11 . . . . . . . Slashing 161 | . . . . . . . . . 55 . 55 11 8 32 . Piercing . | . . . . . . . . . . . . . . . . Sneak Attacks 25 | . . . 1 . 1 . 2 . 6 . 5 7 1 2 . Combat Hostiles 2 | . . . . . . . . . . . . . . 2 . Follow-up Attacks 1 | . . . . . 1 . . . . . . . . . . Damage Inflicted 6142 | . 559 41 1197 1401 418 33 171 . 958 . 926 . 249 189 . Guns 1182 | . 546 41 595 . . . . . . . . . . . . Cannons . | . . . . . . . . . . . . . . . . Explosions 1809 | . . . 167 1401 241 . . . . . . . . . . Melee 3138 | . . . 435 . 177 33 171 . 958 . 926 . 249 189 . Ramming 13 | . 13 . . . . . . . . . . . . . . Kinetic 1182 | . 546 41 595 . . . . . . . . . . . . Thermal . | . . . . . . . . . . . . . . . . Explosive 1809 | . . . 167 1401 241 . . . . . . . . . . Electromagnetic . | . . . . . . . . . . . . . . . . Impact 816 | . . . 435 . 177 33 171 . . . . . . . . Slashing 2322 | . . . . . . . . . 958 . 926 . 249 189 . Piercing . | . . . . . . . . . . . . . . . . Highest Corruption 8 | . . . . . . . 2 2 2 8 8 . . 5 7 Average Corruption 3 | . . . . . . . 2 2 1 8 3 . . 2 6 Corruption Purged 10 | . . . . . . . . . 2 . 8 . . . . Corruption Blocked . | . . . . . . . . . . . . . . . . Effects 21 | . . . . . . . 5 1 . . 6 . . 4 5 Message Errors 6 | . . . . . . . 2 1 . . 2 . . . 1 Matter Fused 7 | . . . . . . . 3 . . . . . . 2 2 Heat Flow Errors 2 | . . . . . . . . . . . 1 . . . 1 Parts Rejected 2 | . . . . . . . . . . . 1 . . 1 . Data Loss (minor) 2 | . . . . . . . . . . . 1 . . . 1 Data Loss (major) 2 | . . . . . . . . . . . 1 . . 1 . Overload Shots . | . . . . . . . . . . . . . . . . Overflow Damage 562 | . . . 73 15 151 . 98 . 115 . 91 . 19 . . Projectiles . | . . . . . . . . . . . . . . . . Explosions 73 | . . . 25 15 33 . . . . . . . . . . Melee 489 | . . . 48 . 118 . 98 . 115 . 91 . 19 . . Knockbacks 2 | . 1 . . . . . 1 . . . . . . . . Impact 2 | . 1 . . . . . 1 . . . . . . . . Kinetic . | . . . . . . . . . . . . . . . . Secondary . | . . . . . . . . . . . . . . . . Self-Inflicted Damage 37 | . 6 . 31 . . . . . . . . . . . . Shots 1 | . . . 1 . . . . . . . . . . . . Rammed 3 | . 3 . . . . . . . . . . . . . . Targets Rammed 3 | . 3 . . . . . . . . . . . . . . Kicked . | . . . . . . . . . . . . . . . . Crushed . | . . . . . . . . . . . . . . . . Highest Temperature 202 | . 18 48 202 46 . . 4 15 15 . 118 4 4 43 136 Average Temperature 30 | . 5 27 73 26 . . 4 9 6 . 7 2 2 10 76 Received Heat Transfer 1143 | . 312 . 258 161 45 45 27 88 . . . . . 195 12 Siege Activations . | . . . . . . . . . . . . . . . . Martial Activations . | . . . . . . . . . . . . . . . . Shielding Activations . | . . . . . . . . . . . . . . . . Robots Disrupted . | . . . . . . . . . . . . . . . . Combat Hostiles . | . . . . . . . . . . . . . . . . Robots Corrupted 4 | . . . 1 . 2 . 1 . . . . . . . . Combat Hostiles . | . . . . . . . . . . . . . . . . Parts Fried 8 | . . . 3 . 3 . 2 . . . . . . . . Impact Corruptions 11 | . . . 4 . 4 . 3 . . . . . . . . Robots Melted . | . . . . . . . . . . . . . . . . Combat Hostiles . | . . . . . . . . . . . . . . . . Parts Melted . | . . . . . . . . . . . . . . . . Heat Transferred . | . . . . . . . . . . . . . . . . Parts Sabotaged . | . . . . . . . . . . . . . . . . Parts Stolen . | . . . . . . . . . . . . . . . . Parts Stripped . | . . . . . . . . . . . . . . . . Power Chain Reactions . | . . . . . . . . . . . . . . . . Alert | -11 -10 -10 -9 -9 -8 -8 -8 -8 -7 -7 -7 -7 -7 -7 -7 ------- Run | Yrd Mat Min Mat Min Mat Gar Mat Gar Fac Was Fac Gar Sto Gar Rec Maximum Alert Level 2 | . . . 2 1 1 2 1 1 1 . . . . 2 1 Low Security (%) 72 | 100 100 100 34 12 42 20 97 89 78 100 100 100 100 61 . Level 1 18 | . . . 27 87 57 70 2 10 21 . . . . 14 100 Level 2 8 | . . . 37 . . 8 . . . . . . . 23 . Level 3 . | . . . . . . . . . . . . . . . . Level 4 . | . . . . . . . . . . . . . . . . Level 5 . | . . . . . . . . . . . . . . . . High Security . | . . . . . . . . . . . . . . . . Max Security . | . . . . . . . . . . . . . . . . Peak Influence 570 | . 105 62 570 247 296 409 202 263 247 82 190 126 68 569 354 Initial 242 | . . 2 20 216 76 159 198 80 137 82 50 79 61 22 242 Average 172 | . 44 38 279 220 205 267 164 122 173 81 133 98 45 252 308 Influence Increases 4567 | . 445 70 1065 71 330 280 192 183 482 . 415 67 93 727 147 Destroy 0b10 Robot/C 700 | . 140 60 320 40 40 . . . 20 . . . 40 40 . Destroy 0b10 Robot/NC 190 | . 30 . 35 . 20 . 15 . 50 . 35 . 5 . . Destroy Leader 210 | . 34 10 88 10 16 . 4 . 10 . 6 . 22 10 . Allied During Kill 17 | . . . 5 . . . . . . . . . 9 3 . Successful Hack 484 | . 13 . 51 . 57 14 26 . 114 . 130 . 16 21 42 Select Force Hacks 260 | . 30 . 60 . . . . . 50 . 30 . . . 90 Disable Machine 120 | . . . 30 . 15 15 30 . 15 . 15 . . . . Anti-Garrison Action 400 | . . . . . . 150 . 50 . . . 50 . 150 . Destroy Structure 266 | . 3 . 41 21 17 11 12 13 28 . 34 17 1 68 . Partial Spotted 510 | . . . 135 . 60 45 75 15 75 . 105 . . . . Lose Combat Pursuer 1410 | . 195 . 300 . 105 45 30 105 120 . 60 . . 435 15 Influence Decreases 4258 | . 438 25 562 429 281 117 477 44 510 163 374 54 185 222 377 Entered New Map 1548 | . . 5 32 339 121 87 211 44 126 153 22 34 65 12 297 Time Decay 1991 | . 349 20 370 40 130 . 246 . 334 10 342 . 80 . 70 Search Patrol Dispatched 100 | . . . 100 . . . . . . . . . . . . Lost Part 370 | . 50 . 40 50 30 10 20 . 20 . 10 . . 130 10 Lost Ally 210 | . . . 20 . . 20 . . 30 . . 20 40 80 . Purge Threat 39 | . 39 . . . . . . . . . . . . . . Squads Dispatched 32 | . 4 . 5 . 4 . 2 . 10 . 6 . 1 . . Investigation 19 | . 3 . 4 . 1 . 1 . 6 . 4 . . . . Extermination 4 | . . . . . . . . . 2 . 2 . . . . Reinforcement 7 | . 1 . 1 . 2 . 1 . 2 . . . . . . Assault . | . . . . . . . . . . . . . . . . Garrison 2 | . . . . . 1 . . . . . . . 1 . . Intercept . | . . . . . . . . . . . . . . . . Searches Triggered 1 | . . . 1 . . . . . . . . . . . . Construction Impeded . | . . . . . . . . . . . . . . . . Haulers Reinforced . | . . . . . . . . . . . . . . . . Active Scanning Responses . | . . . . . . . . . . . . . . . . Cargo Convoy Interrupts . | . . . . . . . . . . . . . . . . Stealth | -11 -10 -10 -9 -9 -8 -8 -8 -8 -7 -7 -7 -7 -7 -7 -7 --------- Run | Yrd Mat Min Mat Min Mat Gar Mat Gar Fac Was Fac Gar Sto Gar Rec Distress Signals 13 | . 1 . 7 . 1 . 2 . 1 . 1 . . . . Communications Jammed . | . . . . . . . . . . . . . . . . Distress Signals . | . . . . . . . . . . . . . . . . Times Spotted 262 | . 27 3 61 24 19 3 14 12 21 4 12 6 2 52 2 Peak Tracking Total 22 | . 8 3 8 22 11 3 5 12 9 4 4 8 2 14 1 Tactical Retreats 41 | . 2 . 12 . 2 2 3 2 5 . 2 1 . 9 1 ECM-based Alert Blocks 31 | . . . 15 . . . 1 . . . . 8 . 7 . Traps | -11 -10 -10 -9 -9 -8 -8 -8 -8 -7 -7 -7 -7 -7 -7 -7 ------- Run | Yrd Mat Min Mat Min Mat Gar Mat Gar Fac Was Fac Gar Sto Gar Rec Traps Triggered 13 | . 3 . . . . 2 1 1 2 . . 3 . 1 . Indirectly . | . . . . . . . . . . . . . . . . Trap Hack Attempts 39 | . . . . . 5 . . . 31 . . . . 3 . Triggered . | . . . . . . . . . . . . . . . . Disarmed . | . . . . . . . . . . . . . . . . Reprogrammed 5 | . . . . . 1 . . . 3 . . . . 1 . Reused . | . . . . . . . . . . . . . . . . Traps Extracted 4 | . . . . . 1 . . . 3 . . . . . . Installed . | . . . . . . . . . . . . . . . . Triggered . | . . . . . . . . . . . . . . . . Most Traps Carried 4 | . . . . . 1 1 1 1 4 4 4 4 4 4 4 Machines | -11 -10 -10 -9 -9 -8 -8 -8 -8 -7 -7 -7 -7 -7 -7 -7 ---------- Run | Yrd Mat Min Mat Min Mat Gar Mat Gar Fac Was Fac Gar Sto Gar Rec Machines Disabled 15 | . . . 2 . 1 4 2 1 1 . 1 1 . 2 . Max in Single Turn 2 | . . . 2 . 1 1 1 1 1 . 1 1 . 1 . Garrison Access 5 | . . . . . . . . . 4 . 1 . . . . Garrison Relay 6 | . . . . . . 2 . 1 . . . 1 . 2 . Phase Generator 1 | . . . . . . 1 . . . . . . . . . Machines Repaired . | . . . . . . . . . . . . . . . . Machines Dismantled 1 | . . . . . . 1 . . . . . . . . . Machines Sabotaged . | . . . . . . . . . . . . . . . . Overloaded Fab Kills . | . . . . . . . . . . . . . . . . Hacking | -11 -10 -10 -9 -9 -8 -8 -8 -8 -7 -7 -7 -7 -7 -7 -7 --------- Run | Yrd Mat Min Mat Min Mat Gar Mat Gar Fac Was Fac Gar Sto Gar Rec Machines Accessed 96 | . 8 . 16 . 7 2 10 1 19 . 18 . 4 3 8 Terminals 63 | . 6 . 12 . 6 2 8 1 8 . 9 . 3 3 5 Fabricators 6 | . . . . . . . . . 4 . 2 . . . . Repair Stations 6 | . 1 . 2 . . . . . 2 . 1 . . . . Recycling Units 7 | . 1 . 1 . . . . . . . 2 . . . 3 Scanalyzers 5 | . . . 1 . . . 1 . 1 . 2 . . . . Garrison Access 9 | . . . . . 1 . 1 . 4 . 2 . 1 . . Total Hacks 289 | . 21 . 68 . 23 5 32 2 50 . 55 . 9 7 17 Successful 167 | . 12 . 46 . 15 2 17 1 26 . 34 . 5 2 7 Failed 121 | . 9 . 22 . 8 3 15 1 23 . 21 . 4 5 10 Catastrophic 16 | . 1 . . . 1 1 1 . 4 . 3 . 1 2 2 Database Lockouts 1 | . . . . . . . . . 1 . . . . . . Manual 175 | . 17 . 43 . 21 2 21 . 23 . 23 . 7 1 17 Terminals 188 | . 17 . 49 . 20 5 25 2 18 . 24 . 7 7 14 Fabricators 14 | . . . . . . . . . 10 . 4 . . . . Repair Stations 18 | . 2 . 10 . . . . . 5 . 1 . . . . Recycling Units 10 | . 2 . 1 . . . . . . . 4 . . . 3 Scanalyzers 40 | . . . 8 . . . 4 . 12 . 16 . . . . Garrison Access 19 | . . . . . 3 . 3 . 5 . 6 . 2 . . Terminal Hacks 34 | . 2 . 19 . 2 1 3 1 1 . 2 . 1 2 . Part Schematic 3 | . . . 1 . . . . . 1 . 1 . . . . Robot Schematic 1 | . . . 1 . . . . . . . . . . . . Robot Analysis 9 | . . . 8 . . . 1 . . . . . . . . Prototype ID Bank 4 | . . . 3 . . . 1 . . . . . . . . Open Door 2 | . . . . . . . . . . . . . 1 1 . Branch Access Points 1 | . . . 1 . . . . . . . . . . . . Emergency Access Points 1 | . . . . . . . . 1 . . . . . . . Terminal Index 3 | . . . 1 . 1 . 1 . . . . . . . . Unreport Threat 2 | . 2 . . . . . . . . . . . . . . Locate Traps 1 | . . . 1 . . . . . . . . . . . . Registered Components 1 | . . . . . 1 . . . . . . . . . . Zone Layout 4 | . . . 3 . . . . . . . 1 . . . . Patrol Navigation 2 | . . . . . . 1 . . . . . . . 1 . Fabricator Hacks 6 | . . . . . . . . . 4 . 2 . . . . Network Status 1 | . . . . . . . . . . . 1 . . . . Load Schematic 4 | . . . . . . . . . 3 . 1 . . . . Build 1 | . . . . . . . . . 1 . . . . . . Repair Station Hacks 10 | . 1 . 7 . . . . . 1 . 1 . . . . Scan Component 4 | . . . 3 . . . . . 1 . . . . . . Repair 3 | . . . 3 . . . . . . . . . . . . Refit 3 | . 1 . 1 . . . . . . . 1 . . . . Recycling Unit Hacks . | . . . . . . . . . . . . . . . . Scanalyzer 28 | . . . 7 . . . 4 . 5 . 12 . . . . Insert Component 8 | . . . 2 . . . . . 2 . 4 . . . . Analyze 8 | . . . 3 . . . . . 2 . 3 . . . . Retrieve Study 12 | . . . 2 . . . 4 . 1 . 5 . . . . Garrison Access Hacks 11 | . . . . . 1 . 1 . 5 . 3 . 1 . . Unlock Access 5 | . . . . . 1 . 1 . . . 2 . 1 . . Seal Access 5 | . . . . . . . . . 4 . 1 . . . . Coupler Status 1 | . . . . . . . . . 1 . . . . . . Unauthorized Hacks 78 | . 9 . 13 . 12 1 9 . 10 . 14 . 3 . 7 Terminals 60 | . 8 . 10 . 11 1 8 . 7 . 8 . 3 . 4 Assimilate 1 | . . . . . . . . . 1 . . . . . . Botnet 20 | . 2 . 4 . 4 1 3 . 1 . 3 . 1 . 1 Disrupt 2 | . 1 . 1 . . . . . . . . . . . . Operators 1 | . . . . . 1 . . . . . . . . . . Skim 36 | . 5 . 5 . 6 . 5 . 5 . 5 . 2 . 3 Fabricators 3 | . . . . . . . . . 2 . 1 . . . . Download 1 | . . . . . . . . . 1 . . . . . . Recompile 2 | . . . . . . . . . 1 . 1 . . . . Repair Stations 1 | . . . 1 . . . . . . . . . . . . Patch 1 | . . . 1 . . . . . . . . . . . . Recycling Units 8 | . 1 . 1 . . . . . . . 3 . . . 3 Monitor 1 | . . . . . . . . . . . 1 . . . . Reject 1 | . . . . . . . . . . . 1 . . . . Mask 1 | . . . . . . . . . . . 1 . . . . Tunnel 5 | . 1 . 1 . . . . . . . . . . . 3 Scanalyzers 3 | . . . 1 . . . . . 1 . 1 . . . . Extract 3 | . . . 1 . . . . . 1 . 1 . . . . Garrison Access 3 | . . . . . 1 . 1 . . . 1 . . . . Reprogram 3 | . . . . . 1 . 1 . . . 1 . . . . Data Cores Recovered 3 | . . . 1 . . . . . 1 . 1 . . . . Used . | . . . . . . . . . . . . . . . . Hacking Detections 82 | . 7 . 13 . 6 2 10 1 15 . 17 . 3 3 5 Full Trace Events 7 | . . . 1 . . . 1 . 3 . 1 . . 1 . Feedback Events 1 | . . . . . . . 1 . . . . . . . . Hackware Fried 1 | . . . . . . . 1 . . . . . . . . Feedback Blocked . | . . . . . . . . . . . . . . . . Robot Schematics Acquired 1 | . . . 1 . . . . . . . . . . . . Robots Built . | . . . . . . . . . . . . . . . . Authchips . | . . . . . . . . . . . . . . . . Time . | . . . . . . . . . . . . . . . . Total Robot Build Rating . | . . . . . . . . . . . . . . . . Part Schematics Acquired 16 | . . . 5 . . . . . 5 . 6 . . . . Parts Built 2 | . . . . . . . . . 2 . . . . . . Authchips 1 | . . . . . . . . . 1 . . . . . . Time 36 | . . . . . . . . . 36 . . . . . . Total Part Build Rating 6 | . . . . . . . . . 6 . . . . . . Part Studies Acquired 12 | . . . 2 . . . 4 . 1 . 5 . . . . Parts Repaired 3 | . . . 3 . . . . . . . . . . . . Time 90 | . . . 90 . . . . . . . . . . . . Parts Recycled . | . . . . . . . . . . . . . . . . Recycled Matter . | . . . . . . . . . . . . . . . . Retrieved Matter . | . . . . . . . . . . . . . . . . Retrieved Components . | . . . . . . . . . . . . . . . . Parts Scanalyzed 8 | . . . 2 . . . . . 2 . 4 . . . . Part Schematics Acquired 7 | . . . 2 . . . . . 2 . 3 . . . . Parts Damaged 2 | . . . . . . . . . . . 2 . . . . Bothacking | -11 -10 -10 -9 -9 -8 -8 -8 -8 -7 -7 -7 -7 -7 -7 -7 ------------ Run | Yrd Mat Min Mat Min Mat Gar Mat Gar Fac Was Fac Gar Sto Gar Rec Used RIF Installer 4 | . . . . . . 1 . 1 . . . 2 . . . Robot Detection 1 | . . . . . . . . . . . . 1 . . . Watcher Feeds 1 | . . . . . . . . . . . . 1 . . . Alert ID Control 1 | . . . . . . . . 1 . . . . . . . Robots Hacked 2 | . . . . . . . . . . . . . . 2 . Non-combat . | . . . . . . . . . . . . . . . . Combat 2 | . . . . . . . . . . . . . . 2 . Robot Hacks Applied 2 | . . . . . . . . . . . . . . 2 . overwrite_iff 1 | . . . . . . . . . . . . . . 1 . formatsys_high 1 | . . . . . . . . . . . . . . 1 . Relay Couplers Released 23 | . . . . . . 8 . 4 . . . 3 . 8 . Machine Destruction 23 | . . . . . . 8 . 4 . . . 3 . 8 . Attached 4 | . . . . . . . . . . . . 1 1 2 . Fabnet Peak Effective % . | . . . . . . . . . . . . . . . . Robots Rewired 5 | . . . . . . . . . 1 . . 3 . 1 . Allies Hacked 1 | . . . . . . . . . . . . . . 1 . Hacks Repelled . | . . . . . . . . . . . . . . . . Allies | -11 -10 -10 -9 -9 -8 -8 -8 -8 -7 -7 -7 -7 -7 -7 -7 -------- Run | Yrd Mat Min Mat Min Mat Gar Mat Gar Fac Was Fac Gar Sto Gar Rec Total Allies 11 | . . 1 . . 1 . . . 2 . 1 3 . 3 . Largest Group 3 | . . . 1 . 1 1 . . 1 . 1 3 3 2 . Highest-Rated Group 90 | . . . 31 . 15 15 . . 32 . 21 90 90 43 . Highest-Rated Ally 32 | . . . 31 . 15 15 . . 32 . 21 30 30 30 . Total Orders 6 | . . . . . . . . . . . . . 6 . . STAY 5 | . . . . . . . . . . . . . 5 . . FOLLOW 1 | . . . . . . . . . . . . . 1 . . Ally Attacks 34 | . . . 9 . 1 3 . . 4 . . 2 4 11 . Total Damage 899 | . . . 146 . 15 89 . . 173 . . 50 163 263 . Kills 8 | . . . 3 . . . . . 1 . . . 2 2 . Allies Corrupted 1 | . . . . . . . . . . . . . . 1 . Allies Melted . | . . . . . . . . . . . . . . . . Intel | -11 -10 -10 -9 -9 -8 -8 -8 -8 -7 -7 -7 -7 -7 -7 -7 ------- Run | Yrd Mat Min Mat Min Mat Gar Mat Gar Fac Was Fac Gar Sto Gar Rec Active Infowar (turns) 3055 | . . . 130 20 151 102 537 123 740 20 773 186 161 112 . Optics 1540 | . . . . . . . . . 561 20 773 186 . . . Sensors 2405 | . . . . . 54 102 516 123 700 . 666 3 161 80 . Structural 1734 | . . . . . 97 102 516 123 545 . 350 1 . . . Traps 129 | . . . . . . . . . 129 . . . . . . ECM 255 | . . . 130 20 . . 39 . . . . 34 . 32 . Robot Analysis Total 9 | . . . 8 . . . 1 . . . . . . . . Derelict Logs Recovered 1 | . . . . 1 . . . . . . . . . . . Drone Launches . | . . . . . . . . . . . . . . . . Drone Recoveries . | . . . . . . . . . . . . . . . . Exploration | -11 -10 -10 -9 -9 -8 -8 -8 -8 -7 -7 -7 -7 -7 -7 -7 ------------- Run | Yrd Mat Min Mat Min Mat Gar Mat Gar Fac Was Fac Gar Sto Gar Rec Turns Passed 5546 | 15 842 43 935 83 274 220 537 123 740 20 773 186 162 448 145 Spaces Moved 8878 | 24 655 38 1412 184 325 375 828 183 1825 67 1549 284 166 691 272 Core 171 | 24 35 . . . . . . . . . . . . . 112 Treads . | . . . . . . . . . . . . . . . . Legs . | . . . . . . . . . . . . . . . . Wheels . | . . . . . . . . . . . . . . . . Hover 1051 | . 620 38 393 . . . . . . . . . . . . Flight 7656 | . . . 1019 184 325 375 828 183 1825 67 1549 284 166 691 160 Fastest Speed 23 | 50 50 56 29 29 30 28 27 29 24 26 23 24 24 24 35 Average Speed 31 | 50 55 56 36 31 33 32 30 29 25 26 23 24 24 25 41 Slowest Speed 112 | 50 60 56 112 32 34 34 35 29 103 26 26 24 24 106 50 Overloaded Moves . | . . . . . . . . . . . . . . . . Propulsion Burnouts . | . . . . . . . . . . . . . . . . Robots Hopped 75 | . . . 7 5 12 2 6 4 11 . 8 . . 19 1 Potential Cave-ins . | . . . . . . . . . . . . . . . . Cave-ins Triggered . | . . . . . . . . . . . . . . . . Exploration Rate (%) 49 | 3 82 13 80 47 35 56 66 35 55 77 49 32 21 83 65 Regions Visited 15 Branch Regions 4 Pre-discovered Areas 13 | . 1 . 5 1 1 . . . 1 . 1 . . . 3 Known Exits Taken 8 | . 1 1 1 1 1 . 1 . . . 1 . 1 . . Unknown Exits Taken 1 | 1 . . . . . . . . . . . . . . . Scrap Searched 2 | . . . . 2 . . . . . . . . . . . Spaces Dug 126 | . 3 . 16 . 3 1 12 8 28 . 34 7 1 13 . Terrain Destroyed 201 | . 3 . 41 38 15 1 12 8 28 . 34 7 1 13 . Melee 123 | . . . 16 . 3 1 12 8 28 . 34 7 1 13 . Projectile 3 | . 3 . . . . . . . . . . . . . . AOE 75 | . . . 25 38 12 . . . . . . . . . . Terrain Rammed . | . . . . . . . . . . . . . . . . Walls Destroyed . | . . . . . . . . . . . . . . . . Machines Disabled . | . . . . . . . . . . . . . . . . Actions | -11 -10 -10 -9 -9 -8 -8 -8 -8 -7 -7 -7 -7 -7 -7 -7 --------- Run | Yrd Mat Min Mat Min Mat Gar Mat Gar Fac Was Fac Gar Sto Gar Rec Total 10947 | 25 1033 48 1707 196 455 425 1070 234 1986 68 1846 383 275 893 303 Wait 1341 | . 268 4 153 6 108 8 199 27 42 2 218 43 98 135 30 Move 8729 | 23 654 37 1397 177 305 370 815 174 1803 66 1534 283 165 656 270 Hop 60 | . . . 7 1 7 2 6 4 11 . 6 . . 15 1 Pick Up 61 | . 18 . 13 1 4 2 5 2 8 . 6 1 1 . . Fast Attach 46 | 2 7 . 11 1 4 . 3 . 6 . 6 1 . 3 2 Attach 41 | . 9 . 9 1 5 1 1 1 4 . 2 1 1 6 . Detach 12 | . 1 . 1 . 1 . 1 2 3 . 2 . . 1 . Swap 59 | . 3 . 18 1 2 2 10 . 11 . 5 4 1 2 . Drop 78 | . 10 . 25 2 1 1 9 1 11 . 11 2 1 4 . Fire 117 | . 60 7 42 6 2 . . . . . . . . . . Melee 256 | . . . 30 . 11 15 19 11 55 . 55 18 8 34 . Ram 3 | . 3 . . . . . . . . . . . . . . Kick . | . . . . . . . . . . . . . . . . Crush . | . . . . . . . . . . . . . . . . Escape Stasis 67 | . . . . . . 15 . 12 . . . 30 . 10 . Rewire 25 | . . . . . . . . . 1 . . . . 24 . Trap 39 | . . . . . 5 . . . 31 . . . . 3 . Miscellaneous 13 | . . . 1 . . 9 2 . . . 1 . . . . Route ------- -11/Scrapyard -10/Materials (discovered 6 exits: *Mat x3 / *Min x2 / Sub) -10/Mines (discovered 4 exits: *Mat x2 / Exi / Sub) -9/Materials (discovered 4 exits: *Mat x3 / *Min) -9/Mines -8/Materials (discovered 4 exits: *Fac x3 / Gar) -8/Garrison (discovered 2 exits: *Mat x2) -8/Materials (discovered 3 exits: *Fac x2 / Gar) -8/Garrison -7/Factory (discovered 7 exits: *Fac x3 / *Sto x2 / *Low x2) -7/Waste -7/Factory (discovered 7 exits: *Fac x3 / *Sto x2 / Low / Gar) -7/Garrison -7/Storage (discovered 3 exits: Fac / Rec / Gar) -7/Garrison (discovered 3 exits: *Rec x3) -7/Recycling (discovered 1 exit: Scr) History --------- Turn | Location | Event 7 | -11/Scrapyard | Discovered new exit (range 15) 16 | -11/Scrapyard | Entered Materials 306 | -10/Materials | Build established: Mutant 396 | -10/Materials | Discovered new exit (range 15) 493 | -10/Materials | Discovered new exit (range 4) 537 | -10/Materials | Discovered new exit (range 5) 548 | -10/Materials | Core integrity fell below 50% 586 | -10/Materials | Lost 3 parts (3n) 592 | -10/Materials | Discovered new exit (range 16) 643 | -10/Materials | Identified exit to Subcaves 643 | -10/Materials | Identified exit to Materials 723 | -10/Materials | Learned location of 2 exits from Mines 762 | -10/Materials | Learned Storage garrison access intel 772 | -10/Materials | Learned location of 1 exit from Storage 785 | -10/Materials | Learned location of 2 exits from Subcaves 810 | -10/Materials | Learned Storage terminal intel 845 | -10/Materials | Identified exit to Mines 858 | -10/Materials | Entered Mines 860 | -10/Mines | Identified exit to Exiles 870 | -10/Mines | Core integrity fell below 20% 898 | -10/Mines | Received a Mining Laser from a helpful Derelict 901 | -10/Mines | Entered Materials 901 | -9/Materials | Accompanied by 1 ally 901 | -9/Materials | Evolved 2 slots: Propulsion x1, Utility x1 902 | -9/Materials | Identified exit to Materials 957 | -9/Materials | Repaired Hover Unit 985 | -9/Materials | Repaired Hover Unit 1193 | -9/Materials | Discovered exit to Materials (range 16) 1250 | -9/Materials | Discovered new exit (range 13) 1433 | -9/Materials | Learned Storage non-interactive machine intel 1492 | -9/Materials | Learned location of Storage (-7) 1494 | -9/Materials | Identified exit to Mines 1524 | -9/Materials | Discovered exit to Materials (range 6) 1583 | -9/Materials | Learned location of Zion (-7) 1605 | -9/Materials | Build established: Hacker-Sprinter 1639 | -9/Materials | Learned location of 1 exit from Recycling 1676 | -9/Materials | Learned location of 1 exit from Storage 1701 | -9/Materials | Search patrols dispatched 1755 | -9/Materials | Loaded intel: 12 trap records 1816 | -9/Materials | Repaired Cesium-ion Thruster+? 1836 | -9/Materials | Entered Mines 1837 | -9/Mines | Assembled infested the area 1859 | -9/Mines | Learned Materials stockpile data 1874 | -9/Mines | Destroyed 22 combat bots 1877 | -9/Mines | Lost 4 parts (1p2n1u) 1916 | -9/Mines | Discovered exit to Materials (range 10) 1919 | -9/Mines | Entered Materials 1919 | -8/Materials | Evolved 2 slots: Propulsion x1, Utility x1 2031 | -8/Materials | Met 7R-MNS 2043 | -8/Materials | Lost 3 parts (1n2w) 2063 | -8/Materials | Discovered new exit (range 15) 2082 | -8/Materials | Learned Factory non-interactive machine intel 2087 | -8/Materials | Identified exit to Garrison 2094 | -8/Materials | Garrison activated, responded to threat 2121 | -8/Materials | Learned Storage trap positions 2148 | -8/Materials | Identified exit to Factory 2174 | -8/Materials | Learned location of 1 exit from Storage 2175 | -8/Materials | Learned location of 2 exits from Factory 2176 | -8/Materials | Learned location of 1 exit from Storage 2177 | -8/Materials | Learned location of 1 exit from Lower Caves 2193 | -8/Materials | Entered Garrison 2193 | -8/Garrison | Accompanied by 1 ally 2221 | -8/Garrison | Triggered checkpoint 2221 | -8/Garrison | Garrison Relay disabled 2308 | -8/Garrison | Phase Generator disabled 2308 | -8/Garrison | Discovered new exit (range 11) 2318 | -8/Garrison | Identified exit to Materials 2340 | -8/Garrison | Build established: Scout 2340 | -8/Garrison | Installed Relay Interface Framework 2348 | -8/Garrison | Triggered checkpoint 2369 | -8/Garrison | Triggered checkpoint 2394 | -8/Garrison | Garrison Relay disabled 2401 | -8/Garrison | Triggered checkpoint 2410 | -8/Garrison | Discovered exit to Materials (range 10) 2413 | -8/Garrison | Entered Materials 2628 | -8/Materials | Discovered exit to Factory (range 16) 2801 | -8/Materials | Discovered exit to Factory (range 16) 2850 | -8/Materials | Hacking Suite fried by hacking feedback 2929 | -8/Materials | Identified exit to Garrison 2950 | -8/Materials | Entered Garrison 3036 | -8/Garrison | Triggered checkpoint 3040 | -8/Garrison | Garrison Relay disabled 3048 | -8/Garrison | Triggered checkpoint 3068 | -8/Garrison | Expanded RIF knowledge: Alert ID Control 3070 | -8/Garrison | Discovered exit to Factory (range 12) 3073 | -8/Garrison | Entered Factory 3073 | -7/Factory | Evolved 2 slots: Propulsion x1, Utility x1 3074 | -7/Factory | Identified exit to Lower Caves 3075 | -7/Factory | Identified exit to Factory 3076 | -7/Factory | Loaded intel: 209 non-interactive machine locations 3261 | -7/Factory | Discovered exit to Factory (range 19) 3449 | -7/Factory | Discovered new exit (range 19) 3497 | -7/Factory | Discovered new exit (range 14) 3545 | -7/Factory | Fabricated Cesium-ion Thruster? 3616 | -7/Factory | Discovered exit to Factory (range 6) 3668 | -7/Factory | Learned location of Warlord (-4) 3700 | -7/Factory | Central database locked down 3721 | -7/Factory | Learned 2 Upper Caves zone layouts 3764 | -7/Factory | Learned 4 Lower Caves zone layouts 3813 | -7/Factory | Manually triggered Chute Trap 3813 | -7/Factory | Sucked down chute 3813 | -7/Factory | Entered Waste 3816 | -7/Waste | Spotted C-40 Crusher 3817 | -7/Waste | Spotted C-40 Crusher 3819 | -7/Waste | Spotted C-40 Crusher 3819 | -7/Waste | Spotted C-40 Crusher 3826 | -7/Waste | Spotted C-40 Crusher 3828 | -7/Waste | EMP discharged 3828 | -7/Waste | Spotted C-40 Crusher 3828 | -7/Waste | Discovered new exit (range 10) 3830 | -7/Waste | Identified exit to Factory 3833 | -7/Waste | Entered Factory 3892 | -7/Factory | Identified exit to Garrison 3895 | -7/Factory | Discovered exit to Factory (range 20) 4152 | -7/Factory | Discovered exit to Factory (range 4) 4160 | -7/Factory | Discovered new exit (range 3) 4160 | -7/Factory | Identified exit to Storage 4237 | -7/Factory | Learned location of 1 exit from Proximity Caves 4294 | -7/Factory | Learned location of 1 exit from Upper Caves 4364 | -7/Factory | Identified exit to Garrison 4416 | -7/Factory | Learned Extension trap positions 4507 | -7/Factory | Learned location of 1 exit from Hub_04(d) 4606 | -7/Factory | Entered Garrison 4606 | -7/Garrison | Accompanied by 1 ally 4670 | -7/Garrison | Triggered checkpoint 4670 | -7/Garrison | Triggered checkpoint 4677 | -7/Garrison | Discovered exit to Storage (range 11) 4686 | -7/Garrison | Triggered checkpoint 4702 | -7/Garrison | Triggered checkpoint 4708 | -7/Garrison | Garrison Relay disabled 4722 | -7/Garrison | Expanded RIF knowledge: Watcher Feeds 4757 | -7/Garrison | Expanded RIF knowledge: Robot Detection 4792 | -7/Garrison | Entered Storage 4792 | -7/Storage | Accompanied by 3 allies 4793 | -7/Storage | Identified exit to Recycling 4795 | -7/Storage | Loaded intel: 9 trap records 4796 | -7/Storage | Loaded intel: 25 non-interactive machine locations 4797 | -7/Storage | Loaded intel: 18 terminal locations 4798 | -7/Storage | Loaded intel: 1 garrison access location 4800 | -7/Storage | Identified exit to Garrison 4914 | -7/Storage | Garrison activated, responded to threat 4954 | -7/Storage | Entered Garrison 4954 | -7/Garrison | Accompanied by 1 ally 4978 | -7/Garrison | Triggered checkpoint 4998 | -7/Garrison | Garrison Relay disabled 5005 | -7/Garrison | Build established: Scientist-Sprinter 5036 | -7/Garrison | Triggered checkpoint 5046 | -7/Garrison | Discovered exit to Recycling (range 10) 5063 | -7/Garrison | Garrison Relay disabled 5204 | -7/Garrison | Triggered checkpoint 5257 | -7/Garrison | Lost 3 parts (1p1n1w) 5258 | -7/Garrison | Triggered checkpoint 5284 | -7/Garrison | Discovered exit to Recycling (range 11) 5378 | -7/Garrison | Core integrity fell below 50% 5387 | -7/Garrison | Core integrity fell below 20% 5402 | -7/Garrison | Entered Recycling 5403 | -7/Recycling | Identified exit to Scraptown 5422 | -7/Recycling | Lost 8 parts (6n1u1w) 5547 | -7/Recycling | Destroyed by Y-54 Guardian with Flak Gun Last Messages --------------- Terminal linked with 0 systems. Awaiting botnet instructions. 05430_ System corrupted: Heat flow error (+166). 05431_ Connecting with Recycling Unit... >>Force(Tunnel) DISCOVERED[-7/Factory] 05443_ Connecting with Recycling Unit... >>Force(Tunnel) DISCOVERED[-3/Research] 05453_ Connecting with Recycling Unit... >>Force(Tunnel) DISCOVERED[-7/Factory] 05457_ Connecting with Terminal... 05460_ Y-54 Guardian springs to life. 05460_ VTOL Module+ destroyed. 05461_ System corrupted: Matter fused (-5). 05473_ Acquired Imp. Hover Unit. 05486_ System corrupted: Matter fused (-7). 05509_ System corrupted: Component data lost. 05532_ QRV2KAAACUMJUF=QB9JMD66ZUJY AKYZ,H Map ----- +----------------------------------------------------+ | ????# #??# #?# """ T" #??????????# | | ????#+############??# #?# """ "" #??????????# | | ????# #?????????????# ?# "" #??????????# | | ????# #??##?????????# #?# #??????????# | | ????# #### #####????# #?# #??????????# | | ????# # #????# #?###########??????????# | | ??### # #????# #??????????????????????# | | ??# ! # #????# #??????????????????????? | | ??#!! # #????# #??????????????????????? | | ??#!! # #????? #??????????????????????? | | ??### # ##????#/###??????????????????????? | | ????# # #????? ?????????????????????????? | | ????# # #????????????????????????????????? | | ????# #?? ??????????????????????????????????? | | ????# #####+#########???????????????????????????? | | ????# #???????????????????????? | | ????####### ######???????????????????????????? | | ??????????# ""#?#######??????????????????????? | | ??????????# Y"#?# ###########????????????? | | ??????????# ""#?# #????????????? | | ??######### ###?# #????????????? | | ??# + #???# #????????????? | | ??# # ###?# ####+############??????? | | ?## # T#?## ##?# #??????? | | ?# # ""#??# #### """ """ #??????? | | ?## # ###??# @!## """"""""" #??????? | | ??# # ###### !!## """"" #??????? | | ??# + !## #??????? | | ??# # #### #??????? | | ??# # r Y##?###############??????? | | ??# # r #??????????????????????? | | ??# + ##??????????????????????? | | ??# # #???????????????????????? | | ??# ### ####### #???????????????????????? | | ??# #?# #?????# #???????????????????????? | | ??# #?#+####### #???????????????????????? | | ??# #?# ## #???????????????????????? | | ??# #?# ## #???????????????????????? | | ??# #?# ! ## +???????????????????????? | | ??# ??# ## #???????????????????????? | | ??# ??# ! ## #???????????????????????? | | ??# ??# ## #???????????????????????? | | ??# ######??# ## ######??????????????????? | | ??##????????# ] # ???????????????????? | | ????????????#]! = # #??????????????????????? | | ????????????# + #??????????????????????? | | ????????????# !# #??????????????????????? | | ????????????#! =# #??????????????????????? | | ????????????# = #?#####??????????????????????? | | ????????????# ! !! #????????????????????????????? | +----------------------------------------------------+ Best States ------------- Heat Dissipation 34 Energy Generation 17 Energy Capacity 300 Matter Stores 300 Matter Capacity 300 Sight Range 20 Robot Scan Range 15 Terrain Scan Density 10 ECM Strength 1 Armor Coverage 300 Propulsion Shielding 66 Evasion (%) 65 Melee Accuracy 6 Offensive Hacking 10 Defensive Hacking 10 Relay Coupler Types 3 Relay Coupler Value 88 Authchip Count 2 Trap Extractor Capacity 4 Item Schematics ----------------- Plasma Cutter | -9/Materials | Scanalyzed Cesium-ion Thruster | -9/Materials | Scanalyzed ECM Suite | -9/Materials | Hacked Spread Laser | -9/Materials | Extracted Terrain Scanner | -9/Materials | Extracted Adv. Particle Charger | -7/Factory | Downloaded Hyp. Gauss Cannon | -7/Factory | Hacked Imp. Propulsion Shielding | -7/Factory | Scanalyzed Mic. Nuclear Core | -7/Factory | Scanalyzed Med. Treads | -7/Factory | Extracted System Restoration Module | -7/Factory | Scanalyzed Powered Armor | -7/Factory | Hacked Xenon Bombardment Thruster | -7/Factory | Scanalyzed Structural Scanner | -7/Factory | Scanalyzed Autogun | -7/Factory | Extracted Spear | -7/Factory | Extracted Robot Schematics ------------------ M-13 Machinist | -9/Materials | Hacked Fabricated ------------ Cesium-ion Thruster | x2 | -7/Factory | Authchip Repaired ---------- Hover Unit | 23% | -9/Materials Hover Unit | 63% | -9/Materials Cesium-ion Thruster | 60% | -9/Materials Studied --------- Cesium-ion Thruster | -9/Materials | Hacked Lgt. Ion Engine | -9/Materials | Hacked VTOL Module | -8/Materials | Hacked Mace | -8/Materials | Hacked Lgt. Deuterium Engine | -8/Materials | Hacked Hvy. Flail | -8/Materials | Hacked Mic. Nuclear Core | -7/Factory | Hacked Xenon Bombardment Thruster | -7/Factory | Hacked Axe | -7/Factory | Hacked Imp. Grenade Launcher | -7/Factory | Hacked Imp. Datajack | -7/Factory | Hacked Chainsword | -7/Factory | Hacked Alien Tech Used ----------------- None Achievements -------------- None Challenges ------------ None Game ------ Seed ReflexDerelictSpear Manual? 0 Play Time 02:04:16 Cumulative 701.0 hours Start 2025.11.25 @ 10:32:19 End 2025.11.25 @ 13:28:38 Sessions 1 Manual Loads 0 Difficulty Rogue Special Mode None Game No. 300 Rogue 300 Adventurer 0 Explorer 0 Win Type - Total 72 Types 38/4/11/5/6/1/1/3/0/3 Lore% 96 Gallery% 89 Achievement% 80 Wizard Run 0 Options --------- Layout 1 ASCII 0 Keyboard 0 Movement Numpad Keybinds 0 Fullscreen 1 Font 24/Smallcaps Map View 50x35 Zoom Use 0% Tactical HUD 1 Map Filters NONE Filters NONE Steam 1 RUN: 67e0ed4b-3dfb-4a5b-9b96-558a88199949